fUST/lending_fUST_20250224
["ID","MTS","AMOUNT","RATE_DAILY","PERIOD"]
[354272570,1740384643673,-500.0,0.0001378,2]
[354272571,1740384643682,-500.30905902,0.0001378,2]
[354272573,1740384643691,-500.0,0.0001378,2]
[354272576,1740384643701,-815.24,0.0001378,2]
[354272577,1740384643710,-500.0,0.0001378,2]
[354272580,1740384643719,-500.0,0.0001378,2]
[354272581,1740384643728,-500.0,0.0001378,2]
[354272584,1740384643738,-500.0,0.0001378,2]
[354272586,1740384643747,-500.0,0.0001378,2]
[354272588,1740384643756,-500.0,0.0001378,2]
[354272590,1740384643765,-504.65686915,0.0001378,2]
[354272592,1740384643774,-500.0,0.0001378,2]
[354272593,1740384643784,-500.0,0.0001378,2]
[354272596,1740384643794,-500.0,0.0001378,2]
[354272598,1740384643803,-500.0,0.0001378,2]
[354272600,1740384643812,-500.0,0.0001378,2]
[354272602,1740384643822,-500.0,0.0001378,2]
[354272604,1740384643831,-500.0,0.0001378,2]
[354272606,1740384643840,-515.6,0.0001378,2]
[354272608,1740384643849,-500.0,0.0001378,2]
[354272610,1740384643859,-500.0,0.0001378,2]
[354272612,1740384643868,-504.17019247,0.0001378,2]
[354272614,1740384643877,-500.0,0.0001378,2]
[354272616,1740384643886,-500.0,0.0001378,2]
[354272618,1740384643895,-500.0,0.0001378,2]
[354272620,1740384643905,-500.0,0.0001378,2]
[354272622,1740384643913,-500.0,0.0001378,2]
[354272624,1740384643923,-500.0,0.0001378,2]
[354272626,1740384643932,-558.43,0.0001378,2]
[354272628,1740384643941,-1276.8,0.0001378,2]
[354272630,1740384643951,-500.0,0.0001378,2]
[354272631,1740384643960,-213.8,0.0001378,2]
[354272634,1740384643972,-500.0,0.0001378,2]
[354272636,1740384643981,-500.0,0.0001378,2]
[354272638,1740384643991,-500.0,0.0001378,2]
[354272640,1740384644000,-500.0,0.0001378,2]
[354272642,1740384644009,-500.0,0.0001378,2]
[354272643,1740384644020,-500.0,0.0001378,2]
[354272645,1740384644029,-500.0,0.0001378,2]
[354272646,1740384644039,-500.0,0.0001378,2]
[354272647,1740384644049,-500.0,0.0001378,2]
[354272648,1740384644059,-510.61376861,0.0001378,2]
[354272649,1740384644068,-500.0,0.0001378,2]
[354272650,1740384644077,-500.0,0.0001378,2]
[354272651,1740384644086,-863.92,0.0001378,2]
[354272652,1740384644096,-500.0,0.0001378,2]
[354272653,1740384644104,-195.8609163,0.0001378,2]
[354272654,1740384644113,-872.82,0.0001378,2]
[354272655,1740384644122,-242.67752155,0.0001378,2]
[354272656,1740384644132,-500.0,0.0001378,2]
[354272657,1740384644141,-500.0,0.0001378,2]
[354272658,1740384644150,-500.0,0.0001378,2]
[354272659,1740384644159,-500.0,0.0001378,2]
[354272660,1740384644168,-500.0,0.0001378,2]
[354272661,1740384644177,-4826.4,0.0001378,2]
[354272662,1740384644186,-500.0,0.0001378,2]
[354272663,1740384644197,-500.0,0.0001378,2]
[354272664,1740384644206,-500.0,0.0001378,2]
[354272665,1740384644215,-500.0,0.0001378,2]
[354272666,1740384644224,-1101.42,0.0001378,2]
[354272667,1740384644233,-500.0,0.0001378,2]
[354272668,1740384644242,-607.89,0.0001378,2]
[354272669,1740384644251,-625.3,0.0001378,2]
[354272670,1740384644260,-15079.39,0.0001378,2]
[354272671,1740384644270,-500.0,0.0001378,2]
[354272672,1740384644279,-500.0,0.0001378,2]
[354272673,1740384644288,-500.0,0.0001378,2]
[354272674,1740384644298,-500.0,0.0001378,2]
[354272675,1740384644307,-2237.64,0.0001378,2]
[354272676,1740384644317,-500.0,0.0001378,2]
[354272677,1740384644326,-973.7,0.0001378,2]
[354272678,1740384644336,-500.0,0.0001378,2]
[354272679,1740384644345,-500.0,0.0001378,2]
[354272680,1740384644354,-546.79,0.0001378,2]
[354272681,1740384644365,-1624.3,0.0001378,2]
[354272682,1740384644374,-500.0,0.0001378,2]
[354272683,1740384644383,-500.0,0.0001378,2]
[354272684,1740384644392,-500.0,0.0001378,2]
[354272685,1740384644402,-500.0,0.0001378,2]
[354272686,1740384644411,-500.0,0.0001378,2]
[354272687,1740384644420,-1134.38,0.0001378,2]
[354272688,1740384644429,-1297.23,0.0001378,2]
[354272689,1740384644438,-500.0,0.0001378,2]
[354272690,1740384644447,-5088.68,0.0001378,2]
[354272691,1740384644456,-500.0,0.0001378,2]
[354272692,1740384644465,-501.81,0.0001378,2]
[354272693,1740384644475,-500.0,0.0001378,2]
[354272694,1740384644484,-500.0,0.0001378,2]
[354272695,1740384644493,-505.39,0.0001378,2]
[354272696,1740384644502,-735.9,0.0001378,2]
[354272697,1740384644511,-500.0,0.0001378,2]
[354272698,1740384644520,-659.95,0.0001378,2]
[354272699,1740384644529,-824.51,0.0001378,2]
[354272700,1740384644538,-500.0,0.0001378,2]
[354272701,1740384644548,-500.0,0.0001378,2]
[354272702,1740384644557,-355.3763574,0.000138,2]
[354272703,1740384644569,-557.4308118,0.000138,2]
[354272704,1740384644579,-153.0,0.000138,2]
[354272705,1740384644588,-355.3763574,0.000138,2]
[354272706,1740384644597,-557.4308118,0.000138,2]
[354272707,1740384644606,-153.0,0.000138,2]
[354272708,1740384644615,-151.0,0.000138,2]
[354272709,1740384644624,-151.0,0.000138,2]
[354272710,1740384644634,-1077.8494113,0.000138,2]
[354272711,1740384644643,-199.8634826,0.000138,2]
[354272712,1740384644651,-712.5102853,0.000138,2]
[354272713,1740384644661,-557.4308118,0.000138,2]
[354272714,1740384644670,-557.4308118,0.000138,2]
[354272715,1740384644679,-557.4308118,0.000138,2]
[354272716,1740384644687,-151.0,0.000138,2]
[354272717,1740384644696,-151.0,0.000138,2]
[354272718,1740384644706,-151.0,0.000138,2]
[354272719,1740384644715,-151.0,0.000138,2]
[354272720,1740384644724,-151.0,0.000138,2]
[354272721,1740384644733,-151.0,0.000138,2]
[354272722,1740384644742,-319.75676462,0.0001385,2]
[354272723,1740384644751,-474.93053478,0.00013854,2]
[354272724,1740384644759,-560.50422336,0.00013862,2]
[354272725,1740384644768,-230.40163109,0.00013862,2]
[354272726,1740384644777,-595.95763773,0.00013862,2]
[354272727,1740384644786,-500.0,0.00013862,2]
[354272728,1740384644796,-368.88969866,0.00013862,2]
[354272729,1740384644805,-242.24447002,0.00013862,2]
[354272730,1740384644814,-500.0,0.00013862,2]
[354272731,1740384644823,-303.80826352,0.00013862,2]
[354272732,1740384644832,-201.76851627,0.00013863,2]
[354272733,1740384644841,-421.53622704,0.00013863,2]
[354272734,1740384644851,-500.0,0.00013863,2]
[354272735,1740384644860,-500.0,0.00013863,2]
[354272736,1740384644869,-500.0,0.00013863,2]
[354272737,1740384644879,-500.0,0.00013863,2]
[354272738,1740384644888,-500.0,0.00013863,2]
[354272739,1740384644898,-500.0,0.00013863,2]
[354272740,1740384644907,-500.0,0.00013863,2]
[354272741,1740384644916,-500.0,0.00013863,2]
[354272742,1740384644925,-500.0,0.00013863,2]
[354272743,1740384644935,-500.0,0.00013863,2]
[354272744,1740384644944,-500.0,0.00013863,2]
[354272745,1740384644953,-500.0,0.00013863,2]
[354272746,1740384644963,-815.24,0.00013863,2]
[354272747,1740384644974,-500.0,0.00013863,2]
[354272748,1740384644983,-500.0,0.00013863,2]
[354272749,1740384644992,-500.0,0.00013863,2]
[354272750,1740384645001,-500.0,0.00013863,2]
[354272751,1740384645011,-500.0,0.00013863,2]
[354272752,1740384645019,-500.0,0.00013863,2]
[354272753,1740384645029,-500.0,0.00013863,2]
[354272754,1740384645038,-500.0,0.00013863,2]
[354272755,1740384645051,-500.0,0.00013863,2]
[354272756,1740384645060,-500.0,0.00013863,2]
[354272757,1740384645070,-500.0,0.00013863,2]
[354272758,1740384645079,-500.0,0.00013863,2]
[354272759,1740384645088,-500.0,0.00013863,2]
[354272760,1740384645098,-431.05025937,0.00013863,2]
[354272761,1740384645107,-500.0,0.00013863,2]
[354272762,1740384645116,-500.0,0.00013863,2]
[354272763,1740384645126,-500.0,0.00013863,2]
[354272764,1740384645136,-500.0,0.00013863,2]
[354272765,1740384645145,-558.43,0.00013863,2]
[354272766,1740384645154,-1276.8,0.00013863,2]
[354272767,1740384645163,-500.0,0.00013863,2]
[354272768,1740384645172,-500.0,0.00013863,2]
[354272769,1740384645181,-500.0,0.00013863,2]
[354272770,1740384645190,-500.0,0.00013863,2]
[354272771,1740384645199,-500.0,0.00013863,2]
[354272772,1740384645208,-500.0,0.00013863,2]
[354272773,1740384645217,-500.0,0.00013863,2]
[354272774,1740384645226,-500.0,0.00013863,2]
[354272775,1740384645235,-500.0,0.00013863,2]
[354272776,1740384645244,-863.92,0.00013863,2]
[354272777,1740384645253,-500.0,0.00013863,2]
[354272778,1740384645263,-872.82,0.00013863,2]
[354272779,1740384645272,-500.0,0.00013863,2]
[354272780,1740384645281,-468.74336505,0.00013863,2]
[354272781,1740384645290,-500.0,0.00013863,2]
[354272782,1740384645301,-500.0,0.00013863,2]
[354272783,1740384645310,-4826.4,0.00013863,2]
[354272784,1740384645319,-500.0,0.00013863,2]
[354272785,1740384645328,-500.0,0.00013863,2]
[354272786,1740384645337,-271.22959911,0.00013863,2]
[354272787,1740384645522,-228.77040089,0.00013863,2]
[354272788,1740384645531,-171.22959911,0.00013863,2]
[354272789,1740384645721,-328.77040089,0.00013863,2]
[354272790,1740384645730,-1101.42,0.00013863,2]
[354272791,1740384645739,-500.0,0.00013863,2]
[354272792,1740384645749,-607.89,0.00013863,2]
[354272793,1740384645758,-15079.39,0.00013863,2]
[354272794,1740384645767,-500.0,0.00013863,2]
[354272795,1740384645776,-500.0,0.00013863,2]
[354272796,1740384645786,-500.0,0.00013863,2]
[354272797,1740384645796,-500.0,0.00013863,2]
[354272798,1740384645806,-2237.64,0.00013863,2]
[354272799,1740384645815,-500.0,0.00013863,2]
[354272800,1740384645824,-973.7,0.00013863,2]
[354272801,1740384645834,-500.0,0.00013863,2]
[354272802,1740384645843,-500.0,0.00013863,2]
[354272803,1740384645852,-546.79,0.00013863,2]
[354272804,1740384645862,-1624.3,0.00013863,2]
[354272805,1740384645871,-500.0,0.00013863,2]
[354272806,1740384645880,-500.0,0.00013863,2]
[354272807,1740384645889,-500.0,0.00013863,2]
[354272808,1740384645899,-500.0,0.00013863,2]
[354272809,1740384645908,-1134.38,0.00013863,2]
[354272811,1740384645917,-1297.23,0.00013863,2]
[354272812,1740384645928,-500.0,0.00013863,2]
[354272813,1740384645937,-5088.68,0.00013863,2]
[354272814,1740384645946,-500.0,0.00013863,2]
[354272815,1740384645956,-501.81,0.00013863,2]
[354272816,1740384645967,-500.0,0.00013863,2]
[354272817,1740384645979,-503.36170499,0.00013863,2]
[354272818,1740384645989,-505.39,0.00013863,2]
[354272819,1740384645998,-735.9,0.00013863,2]
[354272820,1740384646008,-500.0,0.00013863,2]
[354272821,1740384646017,-659.95,0.00013863,2]
[354272823,1740384646027,-824.51,0.00013863,2]
[354272824,1740384646036,-500.0,0.00013863,2]
[354272825,1740384646046,-500.0,0.00013863,2]
[354272826,1740384646057,-151.0,0.000139,2]
[354272827,1740384646066,-153.0,0.000139,2]
[354272829,1740384646075,-355.3763574,0.000139,2]
[354272830,1740384646084,-557.4308118,0.000139,2]
[354272831,1740384646094,-151.0,0.000139,2]
[354272832,1740384646103,-151.0,0.000139,2]
[354272833,1740384646112,-151.0,0.000139,2]
[354272834,1740384646122,-151.0,0.000139,2]
[354272835,1740384646131,-151.0,0.000139,2]
[354272836,1740384646140,-151.0,0.000139,2]
[354272837,1740384646149,-151.0,0.000139,2]
[354272838,1740384646158,-151.0,0.000139,2]
[354272839,1740384646167,-151.0,0.000139,2]
[354272840,1740384646177,-500.0,0.00013945,2]
[354272841,1740384646186,-500.0,0.00013945,2]
[354272842,1740384646195,-265.15,0.00013945,2]
[354272843,1740384646204,-500.0,0.00013945,2]
[354272844,1740384646213,-500.0,0.00013945,2]
[354272845,1740384646222,-500.0,0.00013945,2]
[354272846,1740384646231,-500.0,0.00013945,2]
[354272847,1740384646240,-500.0,0.00013945,2]
[354272848,1740384646249,-500.0,0.00013945,2]
[354272849,1740384646258,-500.0,0.00013945,2]
[354272850,1740384646267,-815.24,0.00013945,2]
[354272851,1740384646276,-500.0,0.00013945,2]
[354272852,1740384646285,-500.0,0.00013945,2]
[354272853,1740384646295,-500.0,0.00013945,2]
[354272854,1740384646304,-500.0,0.00013945,2]
[354272855,1740384646314,-594.55175346,0.00013945,2]
[354272856,1740384646323,-500.0,0.00013945,2]
[354272857,1740384646332,-500.0,0.00013945,2]
[354272859,1740384646341,-500.0,0.00013945,2]
[354272860,1740384646351,-500.0,0.00013945,2]
[354272861,1740384646360,-453.72184367,0.00013945,2]
[354272862,1740384646369,-500.0,0.00013945,2]
[354272863,1740384646378,-500.0,0.00013945,2]
[354272864,1740384646387,-500.0,0.00013945,2]
[354272865,1740384646396,-500.0,0.00013945,2]
[354272866,1740384646406,-500.0,0.00013945,2]
[354272867,1740384646415,-500.0,0.00013945,2]
[354272868,1740384646424,-558.43,0.00013945,2]
[354272869,1740384646433,-1276.8,0.00013945,2]
[354272871,1740384646442,-500.0,0.00013945,2]
[354272872,1740384646451,-500.0,0.00013945,2]
[354272873,1740384646461,-500.0,0.00013945,2]
[354272874,1740384646470,-500.0,0.00013945,2]
[354272875,1740384646479,-500.0,0.00013945,2]
[354272876,1740384646488,-500.0,0.00013945,2]
[354272877,1740384646497,-500.0,0.00013945,2]
[354272878,1740384646506,-269.68,0.00013945,2]
[354272879,1740384646515,-863.92,0.00013945,2]
[354272880,1740384646524,-316.33288857,0.00013945,2]
[354272881,1740384646534,-872.82,0.00013945,2]
[354272882,1740384646543,-366.78266534,0.00013945,2]
[354272883,1740384646554,-500.0,0.00013945,2]
[354272884,1740384646564,-500.0,0.00013945,2]
[354272885,1740384646573,-4826.4,0.00013945,2]
[354272886,1740384646582,-500.0,0.00013945,2]
[354272887,1740384646591,-500.0,0.00013945,2]
[354272888,1740384646599,-500.0,0.00013945,2]
[354272889,1740384646608,-500.0,0.00013945,2]
[354272890,1740384646617,-1101.42,0.00013945,2]
[354272891,1740384646626,-500.0,0.00013945,2]
[354272892,1740384646635,-607.89,0.00013945,2]
[354272893,1740384646644,-15079.39,0.00013945,2]
[354272894,1740384646654,-577.17,0.00013945,2]
[354272896,1740384646664,-500.0,0.00013945,2]
[354272897,1740384646673,-500.0,0.00013945,2]
[354272898,1740384646682,-2237.64,0.00013945,2]
[354272899,1740384646691,-500.0,0.00013945,2]
[354272900,1740384646699,-973.7,0.00013945,2]
[354272901,1740384646708,-500.0,0.00013945,2]
[354272902,1740384646717,-500.0,0.00013945,2]
[354272903,1740384646727,-546.79,0.00013945,2]
[354272904,1740384646736,-1624.3,0.00013945,2]
[354272905,1740384646746,-500.0,0.00013945,2]
[354272906,1740384646755,-266.79,0.00013945,2]
[354272907,1740384646765,-500.0,0.00013945,2]
[354272908,1740384646774,-500.0,0.00013945,2]
[354272909,1740384646784,-1134.38,0.00013945,2]
[354272910,1740384646793,-1297.23,0.00013945,2]
[354272911,1740384646803,-500.0,0.00013945,2]
[354272912,1740384646812,-5088.68,0.00013945,2]
[354272913,1740384646821,-500.0,0.00013945,2]
[354272914,1740384646831,-501.81,0.00013945,2]
[354272915,1740384646840,-500.0,0.00013945,2]
[354272916,1740384646849,-505.39,0.00013945,2]
[354272917,1740384646858,-735.9,0.00013945,2]
[354272918,1740384646867,-500.0,0.00013945,2]
[354272919,1740384646876,-659.95,0.00013945,2]
[354272920,1740384646886,-824.51,0.00013945,2]
[354272921,1740384646895,-500.0,0.00013945,2]
[354272922,1740384646904,-500.0,0.00013945,2]
[354272923,1740384646913,-369.07213541,0.00013947,2]
[354272924,1740384646922,-40000.0,0.0001399,2]
[354272925,1740384646931,-500.75593073,0.0001399,2]
[354272926,1740384646940,-182.51981867,0.00013999,2]
[354272927,1740384646949,-500.0,0.00013999,2]
[354272928,1740384646958,-500.0,0.00013999,2]
[354272929,1740384646971,-336.81355357,0.00013999,2]
[354272930,1740384646980,-500.0,0.00013999,2]
[354272931,1740384646989,-500.0,0.00013999,2]
[354272932,1740384646999,-237680.65124703,0.00014,15]
[354273014,1740385396361,10000.0,0.00012,30]
[354273015,1740385401376,1000.0,0.00019,120]
[354273017,1740385439431,191.935232,9.041e-05,2]
[354273018,1740385503290,10000.0,0.0001,2]
[354273019,1740385521997,3037.58404863,0.0001,10]
[354273020,1740385522023,153.455707,0.0001,10]
[354273021,1740385557467,10000.0,0.00012,30]
[354273022,1740385594115,10000.0,0.00012,30]
[354273063,1740385715622,1142.58282213,0.00018159,90]
[354273085,1740385823247,2246.0,8.001e-05,2]
[354273106,1740385832852,-505.29837822,0.0001,10]
[354273107,1740385832908,-6303.66186615,0.0001,10]
[354273108,1740385832919,-2069.0,0.0001,2]
[354273109,1740385832929,-2068.0,0.0001,2]
[354273110,1740385832939,-2068.0,0.0001,2]
[354273111,1740385832948,-2068.0,0.0001,2]
[354273112,1740385832958,-187.3393777,0.00012686,2]
[354273113,1740385832968,-167.5618815,0.00012759,2]
[354273114,1740385832978,-1000.0,0.00013,13]
[354273115,1740385832987,-282.0,0.00013277,2]
[354273116,1740385832996,-19601.91606613,0.00013278,2]
[354273118,1740385833006,-557.4308118,0.000133,2]
[354273120,1740385833016,-161.49461176,0.000135,2]
[354273122,1740385833026,-557.4308118,0.000135,2]
[354273124,1740385833036,-1077.8494113,0.000135,2]
[354273126,1740385833046,-231.37264492,0.00013598,2]
[354273129,1740385833059,-557.4308118,0.000136,2]
[354273131,1740385833069,-153.0,0.000136,2]
[354273133,1740385833079,-357.1339279,0.000136,2]
[354273135,1740385833090,-153.0,0.000136,2]
[354273137,1740385833100,-557.4308118,0.000136,2]
[354273139,1740385833111,-355.3763574,0.000136,2]
[354273141,1740385833120,-355.3763574,0.000136,2]
[354273143,1740385833131,-557.4308118,0.000136,2]
[354273145,1740385833141,-153.0,0.000136,2]
[354273147,1740385833152,-363.6520511,0.000136,2]
[354273149,1740385833161,-355.3763574,0.000136,2]
[354273151,1740385833171,-557.4308118,0.000136,2]
[354273153,1740385833181,-231.37264489,0.00013619,2]
[354273154,1740385833191,-161.49461176,0.00013633,2]
[354273156,1740385833200,-231.37264489,0.00013639,2]
[354273159,1740385833211,-231.37264489,0.0001366,2]
[354273160,1740385833222,-500.0,0.00013673,2]
[354273161,1740385833232,-615.73186443,0.00013673,2]
[354273162,1740385833241,-840.11622717,0.0001368,2]
[354273163,1740385833251,-231.37264489,0.0001368,2]
[354273164,1740385833261,-151.0,0.0001369,2]
[354273165,1740385833271,-368.88969866,0.00013697,2]
[354273166,1740385833281,-595.95763773,0.00013697,2]
[354273167,1740385833291,-230.40163109,0.00013697,2]
[354273168,1740385833304,-500.0,0.00013697,2]
[354273169,1740385833314,-303.80826352,0.00013697,2]
[354273170,1740385833323,-500.0,0.00013698,2]
[354273171,1740385833333,-500.12369152,0.00013698,2]
[354273172,1740385833345,-500.0,0.00013698,2]
[354273173,1740385833357,-500.0,0.00013698,2]
[354273174,1740385833367,-500.0,0.00013698,2]
[354273175,1740385833378,-500.0,0.00013698,2]
[354273176,1740385833390,-503.0886522,0.00013698,2]
[354273177,1740385833399,-309.87324916,0.00013698,2]
[354273178,1740385833408,-500.0,0.00013698,2]
[354273179,1740385833417,-500.0,0.00013698,2]
[354273180,1740385833517,-151.608241,0.00013698,2]
[354273181,1740385833527,-500.0,0.00013698,2]
[354273182,1740385833537,-500.0,0.00013698,2]
[354273183,1740385833547,-500.0,0.00013698,2]
[354273184,1740385833559,-500.0,0.00013698,2]
[354273185,1740385833568,-501.11836703,0.00013698,2]
[354273186,1740385833579,-500.0,0.00013698,2]
[354273187,1740385833588,-500.0,0.00013698,2]
[354273188,1740385833597,-500.0,0.00013698,2]
[354273189,1740385833607,-500.0,0.00013698,2]
[354273190,1740385833616,-500.0,0.00013698,2]
[354273191,1740385833625,-500.0,0.00013698,2]
[354273192,1740385833635,-500.0,0.00013698,2]
[354273193,1740385833644,-500.0,0.00013698,2]
[354273194,1740385833653,-500.0,0.00013698,2]
[354273195,1740385833663,-489.85443509,0.00013698,2]
[354273196,1740385833673,-478.63553753,0.00013698,2]
[354273197,1740385833682,-500.0,0.00013698,2]
[354273198,1740385833692,-500.0,0.00013698,2]
[354273199,1740385833701,-500.0,0.00013698,2]
[354273200,1740385833711,-500.0,0.00013698,2]
[354273201,1740385833720,-500.0,0.00013698,2]
[354273202,1740385833729,-500.0,0.00013698,2]
[354273203,1740385833739,-500.0,0.00013698,2]
[354273204,1740385833748,-500.0,0.00013698,2]
[354273205,1740385833757,-500.0,0.00013698,2]
[354273206,1740385833767,-500.0,0.00013698,2]
[354273207,1740385833776,-500.0,0.00013698,2]
[354273208,1740385833786,-429.57794078,0.00013698,2]
[354273209,1740385833795,-500.0,0.00013698,2]
[354273210,1740385833807,-500.0,0.00013698,2]
[354273211,1740385833816,-500.0,0.00013698,2]
[354273212,1740385833825,-500.0,0.00013698,2]
[354273213,1740385833835,-500.0,0.00013698,2]
[354273214,1740385833845,-500.0,0.00013698,2]
[354273215,1740385833854,-501.21224795,0.00013698,2]
[354273216,1740385833864,-457.24653084,0.00013698,2]
[354273217,1740385833873,-500.0,0.00013698,2]
[354273218,1740385833883,-500.0,0.00013698,2]
[354273219,1740385833893,-500.0,0.00013698,2]
[354273220,1740385833902,-500.0,0.00013698,2]
[354273221,1740385833912,-500.0,0.00013698,2]
[354273222,1740385833922,-500.0,0.00013698,2]
[354273223,1740385833931,-514.44279323,0.00013698,2]
[354273224,1740385833941,-500.0,0.00013698,2]
[354273225,1740385833950,-500.0,0.00013698,2]
[354273226,1740385833960,-843.77,0.00013698,2]
[354273227,1740385833969,-294.5794044,0.00013698,2]
[354273228,1740385833979,-500.0,0.00013698,2]
[354273229,1740385833989,-500.0,0.00013698,2]
[354273230,1740385834000,-501.56969731,0.00013698,2]
[354273231,1740385834010,-541.99335899,0.00013698,2]
[354273232,1740385834020,-500.0,0.00013698,2]
[354273233,1740385834030,-509.11820944,0.00013698,2]
[354273234,1740385834039,-500.0,0.00013698,2]
[354273235,1740385834048,-500.0,0.00013698,2]
[354273236,1740385834059,-500.0,0.00013698,2]
[354273237,1740385834069,-500.0,0.00013698,2]
[354273238,1740385834079,-500.0,0.00013698,2]
[354273239,1740385834089,-500.0,0.00013698,2]
[354273240,1740385834100,-500.0,0.00013698,2]
[354273241,1740385834110,-500.0,0.00013698,2]
[354273242,1740385834119,-500.28960985,0.00013698,2]
[354273243,1740385834129,-500.0,0.00013698,2]
[354273244,1740385834139,-441.0152986,0.00013698,2]
[354273245,1740385834148,-500.0,0.00013698,2]
[354273246,1740385834157,-500.0,0.00013698,2]
[354273247,1740385834167,-500.0,0.00013698,2]
[354273248,1740385834177,-500.0,0.00013698,2]
[354273249,1740385834187,-500.0,0.00013698,2]
[354273250,1740385834197,-500.0,0.00013698,2]
[354273251,1740385834207,-500.0,0.00013698,2]
[354273252,1740385834217,-500.0,0.00013698,2]
[354273253,1740385834226,-500.0,0.00013698,2]
[354273254,1740385834235,-500.0,0.00013698,2]
[354273255,1740385834244,-500.0,0.00013698,2]
[354273256,1740385834253,-500.0,0.00013698,2]
[354273257,1740385834262,-500.0,0.00013698,2]
[354273258,1740385834272,-500.0,0.00013698,2]
[354273259,1740385834281,-500.0,0.00013698,2]
[354273260,1740385834291,-367.542311,0.00013698,2]
[354273261,1740385834301,-500.12359795,0.00013698,2]
[354273262,1740385834310,-500.0,0.00013698,2]
[354273263,1740385834319,-298.75550861,0.00013698,2]
[354273264,1740385834328,-500.0,0.00013698,2]
[354273265,1740385834337,-500.0,0.00013698,2]
[354273266,1740385834351,-501.15629573,0.00013698,2]
[354273267,1740385834361,-500.0,0.00013698,2]
[354273268,1740385834370,-500.0,0.00013698,2]
[354273269,1740385834380,-500.0,0.00013698,2]
[354273270,1740385834390,-500.0,0.00013698,2]
[354273271,1740385834400,-500.0,0.00013698,2]
[354273272,1740385834410,-500.0,0.00013698,2]
[354273273,1740385834420,-500.0,0.00013698,2]
[354273274,1740385834430,-503.89853092,0.00013698,2]
[354273275,1740385834440,-500.0,0.00013698,2]
[354273276,1740385834449,-500.0,0.00013698,2]
[354273277,1740385834458,-500.0,0.00013698,2]
[354273278,1740385834468,-500.0,0.00013698,2]
[354273279,1740385834478,-555.75355024,0.00013698,2]
[354273280,1740385834488,-500.0,0.00013698,2]
[354273281,1740385834497,-500.0,0.00013698,2]
[354273282,1740385834507,-500.0,0.00013698,2]
[354273283,1740385834517,-500.0,0.00013698,2]
[354273284,1740385834526,-500.9964805,0.00013698,2]
[354273285,1740385834536,-500.0,0.00013698,2]
[354273286,1740385834546,-500.0,0.00013698,2]
[354273287,1740385834557,-500.0,0.00013698,2]
[354273288,1740385834567,-500.0,0.00013698,2]
[354273289,1740385834576,-500.0,0.00013698,2]
[354273290,1740385834586,-500.0,0.00013698,2]
[354273291,1740385834596,-500.0,0.00013698,2]
[354273292,1740385834606,-500.0,0.00013698,2]
[354273293,1740385834616,-169.73733752,0.00013698,2]
[354273294,1740385834626,-500.0,0.00013698,2]
[354273295,1740385834635,-500.0,0.00013698,2]
[354273296,1740385834645,-500.0,0.00013698,2]
[354273297,1740385834655,-500.0,0.00013698,2]